[Event "Titled Tuesday Blitz December 06 Late 2022"]
[White "Polster, Christian"]
[Black "Toncheva, Nadya"]
[WhiteFideId "12965081"]
[BlackFideId "2924056"]
[WhiteElo "2195"]
[BlackElo "2101"]
[Result "0-1"]
[Round "02"]
[TimeControl "180+1"]
[Date "2022.12.07"]
[WhiteClock "0:00:02"]
[BlackClock "0:00:16"]

1. e4 {[%clk 0:02:59]}  c5 {[%clk 0:02:59]} 2. Nc3 {[%clk 0:03:00]}  Nc6 {[%clk 0:03:00]} 3. Nge2 {[%clk 0:03:00]}  g6 {[%clk 0:03:00]} 4. d4 {[%clk 0:02:59]}  cxd4 {[%clk 0:03:01]} 5. Nxd4 {[%clk 0:03:00]}  Bg7 {[%clk 0:03:01]} 6. Be3 {[%clk 0:03:00]}  Nf6 {[%clk 0:03:01]} 7. Bc4 {[%clk 0:03:00]}  O-O {[%clk 0:03:00]} 8. Bb3 {[%clk 0:02:57]}  d6 {[%clk 0:02:58]} 9. f3 {[%clk 0:02:57]}  Bd7 {[%clk 0:02:54]} 10. Qd2 {[%clk 0:02:57]}  Rc8 {[%clk 0:02:53]} 11. O-O-O {[%clk 0:02:57]}  Ne5 {[%clk 0:02:53]} 12. h4 {[%clk 0:02:56]}  h5 {[%clk 0:02:52]} 13. Bg5 {[%clk 0:02:56]}  Nc4 {[%clk 0:02:52]} 14. Qe2 {[%clk 0:02:55]}  b5 {[%clk 0:02:37]} 15. Ndxb5 {[%clk 0:02:20]}  Bxb5 {[%clk 0:02:19]} 16. Nxb5 {[%clk 0:02:21]}  Na5 {[%clk 0:01:32]} 17. Kb1 {[%clk 0:02:11]}  Nxb3 {[%clk 0:01:21]} 18. cxb3 {[%clk 0:02:11]}  Qb6 {[%clk 0:01:19]} 19. Nc3 {[%clk 0:02:10]}  Qb7 {[%clk 0:00:46]} 20. g4 {[%clk 0:02:06]}  Rc5 {[%clk 0:00:41]} 21. Bxf6 {[%clk 0:02:01]}  Bxf6 {[%clk 0:00:41]} 22. Nd5 {[%clk 0:02:01]}  Bg7 {[%clk 0:00:35]} 23. gxh5 {[%clk 0:02:00]}  e6 {[%clk 0:00:34]} 24. Ne3 {[%clk 0:01:39]}  Rxh5 {[%clk 0:00:34]} 25. Rxd6 {[%clk 0:01:32]}  Rc8 {[%clk 0:00:29]} 26. Nc4 {[%clk 0:01:21]}  Qc7 {[%clk 0:00:28]} 27. Rhd1 {[%clk 0:01:13]}  Rxh4 {[%clk 0:00:27]} 28. Qf2 {[%clk 0:01:07]}  Rh5 {[%clk 0:00:25]} 29. Rd7 {[%clk 0:01:06]}  Qf4 {[%clk 0:00:21]} 30. Rxa7 {[%clk 0:00:55]}  Rh2 {[%clk 0:00:21]} 31. Qg1 {[%clk 0:00:42]}  Rxc4 {[%clk 0:00:20]} 32. Rd8+ {[%clk 0:00:07]}  Kh7 {[%clk 0:00:19]} 33. Rxf7 {[%clk 0:00:03]}  Rxb2+ {[%clk 0:00:18]} 34. Ka1 {[%clk 0:00:03]}  Rc1+ {[%clk 0:00:15]} 35. Qxc1 {[%clk 0:00:02]}  Qxc1# {[%clk 0:00:16]} 0-1


[Site "https://www.chess.com"]

[Event "Titled Tuesday Blitz December 06 Late 2022"]
[White "Postnikov, Daniil"]
[Black "Martinez Alcantara, Jose Eduardo"]
[WhiteFideId "4166329"]
[BlackFideId "3805662"]
[WhiteElo "2261"]
[BlackElo "2707"]
[Result "0-1"]
[Round "02"]
[TimeControl "180+1"]
[Date "2022.12.06"]
[WhiteClock "0:00:16"]
[BlackClock "0:00:18"]

1. e4 {[%clk 0:02:58]}  c5 {[%clk 0:02:59]} 2. a3 {[%clk 0:02:53]}  e6 {[%clk 0:02:58]} 3. b4 {[%clk 0:02:52]}  d5 {[%clk 0:02:58]} 4. d4 {[%clk 0:02:51]}  cxd4 {[%clk 0:02:57]} 5. exd5 {[%clk 0:02:51]}  exd5 {[%clk 0:02:53]} 6. Nf3 {[%clk 0:02:50]}  Nf6 {[%clk 0:02:53]} 7. Nxd4 {[%clk 0:02:50]}  Be7 {[%clk 0:02:53]} 8. Be2 {[%clk 0:02:44]}  O-O {[%clk 0:02:53]} 9. O-O {[%clk 0:02:45]}  Nc6 {[%clk 0:02:53]} 10. Bb2 {[%clk 0:02:44]}  Ne4 {[%clk 0:02:52]} 11. Nd2 {[%clk 0:02:42]}  Bf6 {[%clk 0:02:41]} 12. Nxe4 {[%clk 0:02:23]}  dxe4 {[%clk 0:02:42]} 13. Nxc6 {[%clk 0:02:24]}  Qxd1 {[%clk 0:02:41]} 14. Raxd1 {[%clk 0:02:23]}  Bxb2 {[%clk 0:02:41]} 15. Ne7+ {[%clk 0:02:21]}  Kh8 {[%clk 0:02:41]} 16. Nxc8 {[%clk 0:01:59]}  Raxc8 {[%clk 0:02:42]} 17. c4 {[%clk 0:01:59]}  Bxa3 {[%clk 0:02:42]} 18. Rb1 {[%clk 0:01:55]}  a5 {[%clk 0:02:17]} 19. bxa5 {[%clk 0:01:54]}  Rc7 {[%clk 0:02:18]} 20. Rb5 {[%clk 0:01:49]}  g6 {[%clk 0:02:02]} 21. Rfb1 {[%clk 0:01:48]}  Ra8 {[%clk 0:01:46]} 22. Rxb7 {[%clk 0:01:47]}  Rxb7 {[%clk 0:01:46]} 23. Rxb7 {[%clk 0:01:48]}  Rxa5 {[%clk 0:01:47]} 24. Rxf7 {[%clk 0:01:48]}  Bc5 {[%clk 0:01:47]} 25. g3 {[%clk 0:01:43]}  Ra2 {[%clk 0:01:37]} 26. Kf1 {[%clk 0:01:42]}  Ra1+ {[%clk 0:01:33]} 27. Kg2 {[%clk 0:01:42]}  Ra2 {[%clk 0:01:34]} 28. Kf1 {[%clk 0:01:25]}  Ra6 {[%clk 0:01:31]} 29. Rc7 {[%clk 0:01:21]}  Ra5 {[%clk 0:01:00]} 30. Rc8+ {[%clk 0:01:19]}  Kg7 {[%clk 0:00:58]} 31. Re8 {[%clk 0:01:20]}  e3 {[%clk 0:00:49]} 32. fxe3 {[%clk 0:01:18]}  Ra3 {[%clk 0:00:49]} 33. Kf2 {[%clk 0:01:16]}  Ra7 {[%clk 0:00:49]} 34. Re5 {[%clk 0:01:10]}  Rc7 {[%clk 0:00:49]} 35. Kf3 {[%clk 0:01:02]}  Kf6 {[%clk 0:00:50]} 36. Rd5 {[%clk 0:01:02]}  h5 {[%clk 0:00:47]} 37. e4 {[%clk 0:01:02]}  Ke6 {[%clk 0:00:47]} 38. Bd3 {[%clk 0:01:00]}  Rf7+ {[%clk 0:00:45]} 39. Kg2 {[%clk 0:01:00]}  Rf2+ {[%clk 0:00:45]} 40. Kh3 {[%clk 0:01:00]}  Be3 {[%clk 0:00:43]} 41. c5 {[%clk 0:00:51]}  g5 {[%clk 0:00:42]} 42. g4 {[%clk 0:00:47]}  h4 {[%clk 0:00:35]} 43. Rf5 {[%clk 0:00:42]}  Bf4 {[%clk 0:00:34]} 44. Bc4+ {[%clk 0:00:40]}  Ke7 {[%clk 0:00:29]} 45. Rf7+ {[%clk 0:00:36]}  Ke8 {[%clk 0:00:29]} 46. Rxf4 {[%clk 0:00:36]}  Rxf4 {[%clk 0:00:27]} 47. Bd5 {[%clk 0:00:36]}  Kd7 {[%clk 0:00:24]} 48. Bb7 {[%clk 0:00:30]}  Kc7 {[%clk 0:00:20]} 49. Bd5 {[%clk 0:00:29]}  Rf2 {[%clk 0:00:18]} 50. c6 {[%clk 0:00:16]}  Kd6 {[%clk 0:00:18]} 0-1


[Site "https://www.chess.com"]

[Event "Titled Tuesday Blitz December 06 Late 2022"]
[White "Potapova, Margarita"]
[Black "Chigaev, Maksim"]
[WhiteFideId "14126869"]
[BlackFideId "4108116"]
[WhiteElo "2273"]
[BlackElo "2542"]
[Result "0-1"]
[Round "02"]
[TimeControl "180+1"]
[Date "2022.12.07"]
[WhiteClock "0:01:18"]
[BlackClock "0:01:19"]

1. d4 {[%clk 0:03:00]}  Nf6 {[%clk 0:03:00]} 2. Bf4 {[%clk 0:03:01]}  d6 {[%clk 0:03:00]} 3. e3 {[%clk 0:03:02]}  g6 {[%clk 0:02:59]} 4. Nf3 {[%clk 0:03:02]}  Bg7 {[%clk 0:03:00]} 5. h3 {[%clk 0:03:03]}  O-O {[%clk 0:03:00]} 6. Bh2 {[%clk 0:03:03]}  c5 {[%clk 0:03:01]} 7. c3 {[%clk 0:03:04]}  Qb6 {[%clk 0:03:01]} 8. Qb3 {[%clk 0:03:04]}  Be6 {[%clk 0:03:02]} 9. Qa3 {[%clk 0:03:05]}  cxd4 {[%clk 0:02:35]} 10. exd4 {[%clk 0:03:06]}  Qc6 {[%clk 0:02:33]} 11. Be2 {[%clk 0:03:02]}  Nbd7 {[%clk 0:02:33]} 12. O-O {[%clk 0:03:02]}  a5 {[%clk 0:02:29]} 13. Nbd2 {[%clk 0:02:55]}  b5 {[%clk 0:02:29]} 14. Rac1 {[%clk 0:02:55]}  Nb6 {[%clk 0:02:29]} 15. Ng5 {[%clk 0:02:46]}  Bd5 {[%clk 0:02:28]} 16. Bf3 {[%clk 0:02:46]}  h6 {[%clk 0:02:25]} 17. Bxd5 {[%clk 0:02:45]}  Nfxd5 {[%clk 0:02:25]} 18. Ngf3 {[%clk 0:02:46]}  a4 {[%clk 0:02:24]} 19. Rfe1 {[%clk 0:02:43]}  Nc4 {[%clk 0:02:24]} 20. Nxc4 {[%clk 0:02:42]}  bxc4 {[%clk 0:02:25]} 21. Nd2 {[%clk 0:02:34]}  Rfb8 {[%clk 0:02:23]} 22. Re2 {[%clk 0:02:34]}  Rb7 {[%clk 0:02:17]} 23. Rce1 {[%clk 0:02:34]}  Rab8 {[%clk 0:02:15]} 24. Nf3 {[%clk 0:02:30]}  Bf8 {[%clk 0:02:14]} 25. g4 {[%clk 0:02:25]}  e6 {[%clk 0:02:07]} 26. h4 {[%clk 0:01:56]}  Nf6 {[%clk 0:02:01]} 27. g5 {[%clk 0:01:49]}  hxg5 {[%clk 0:01:50]} 28. Nxg5 {[%clk 0:01:40]}  d5 {[%clk 0:01:48]} 29. b4 {[%clk 0:01:34]}  cxb3 {[%clk 0:01:39]} 30. Qb2 {[%clk 0:01:30]}  a3 {[%clk 0:01:37]} 31. Qb1 {[%clk 0:01:30]}  bxa2 {[%clk 0:01:30]} 32. Qxa2 {[%clk 0:01:28]}  Rb2 {[%clk 0:01:28]} 33. Qa1 {[%clk 0:01:23]}  Bd6 {[%clk 0:01:26]} 34. Bxd6 {[%clk 0:01:17]}  Qxd6 {[%clk 0:01:27]} 35. Nxe6 {[%clk 0:01:18]}  Ng4 {[%clk 0:01:19]} 0-1


[Site "https://www.chess.com"]

[Event "Titled Tuesday Blitz December 06 Late 2022"]
[White "Quesada Perez, Yuniesky"]
[Black "Riff, Vincent"]
[WhiteFideId "3504409"]
[BlackFideId "617776"]
[WhiteElo "2600"]
[BlackElo "2369"]
[Result "1-0"]
[Round "02"]
[TimeControl "180+1"]
[Date "2022.12.06"]
[WhiteClock "0:00:43"]
[BlackClock "0:01:10"]

1. e4 {[%clk 0:03:00]}  c5 {[%clk 0:02:58]} 2. Nf3 {[%clk 0:03:00]}  Nc6 {[%clk 0:02:57]} 3. Bb5 {[%clk 0:02:58]}  d6 {[%clk 0:02:56]} 4. c3 {[%clk 0:02:55]}  Nf6 {[%clk 0:02:53]} 5. Qe2 {[%clk 0:02:53]}  Bg4 {[%clk 0:02:51]} 6. O-O {[%clk 0:02:51]}  e5 {[%clk 0:02:44]} 7. h3 {[%clk 0:02:44]}  Bh5 {[%clk 0:02:43]} 8. Rd1 {[%clk 0:02:44]}  Be7 {[%clk 0:02:43]} 9. d4 {[%clk 0:02:42]}  cxd4 {[%clk 0:02:43]} 10. cxd4 {[%clk 0:02:42]}  exd4 {[%clk 0:02:33]} 11. g4 {[%clk 0:02:34]}  Bg6 {[%clk 0:02:31]} 12. Nxd4 {[%clk 0:02:34]}  Rc8 {[%clk 0:02:28]} 13. e5 {[%clk 0:02:18]}  O-O {[%clk 0:02:24]} 14. Nxc6 {[%clk 0:02:07]}  bxc6 {[%clk 0:02:20]} 15. exf6 {[%clk 0:02:07]}  Bxf6 {[%clk 0:02:21]} 16. Bd3 {[%clk 0:02:07]}  Re8 {[%clk 0:02:20]} 17. Qf3 {[%clk 0:02:07]}  Qb6 {[%clk 0:02:13]} 18. Nc3 {[%clk 0:02:04]}  d5 {[%clk 0:02:12]} 19. Bxg6 {[%clk 0:01:34]}  fxg6 {[%clk 0:02:09]} 20. Rf1 {[%clk 0:01:15]}  Qb4 {[%clk 0:02:04]} 21. Qd3 {[%clk 0:01:11]}  Re7 {[%clk 0:01:56]} 22. Bd2 {[%clk 0:01:06]}  Qb7 {[%clk 0:01:49]} 23. b3 {[%clk 0:01:03]}  Rf7 {[%clk 0:01:20]} 24. Rae1 {[%clk 0:01:02]}  Rcf8 {[%clk 0:01:21]} 25. Re2 {[%clk 0:01:01]}  Bxc3 {[%clk 0:01:11]} 26. Bxc3 {[%clk 0:00:59]}  c5 {[%clk 0:01:11]} 27. Be5 {[%clk 0:00:52]}  d4 {[%clk 0:01:11]} 28. Bd6 {[%clk 0:00:45]}  Rf3 {[%clk 0:01:10]} 29. Qc4+ {[%clk 0:00:44]}  R8f7 {[%clk 0:01:10]} 30. Re8# {[%clk 0:00:43]} 1-0


[Site "https://www.chess.com"]

[Event "Titled Tuesday Blitz December 06 Late 2022"]
[White "Quizon, Daniel"]
[Black "Vlassov, Nikolai"]
[WhiteFideId "5217911"]
[BlackFideId "4103360"]
[WhiteElo "2816"]
[BlackElo "2557"]
[Result "1-0"]
[Round "02"]
[TimeControl "180+1"]
[Date "2022.12.07"]
[WhiteClock "0:01:07"]
[BlackClock "0:00:04"]

1. c4 {[%clk 0:03:00]}  e5 {[%clk 0:02:59]} 2. e3 {[%clk 0:03:01]}  Nf6 {[%clk 0:02:58]} 3. d3 {[%clk 0:03:01]}  c6 {[%clk 0:02:55]} 4. Nf3 {[%clk 0:03:02]}  Qc7 {[%clk 0:02:51]} 5. a3 {[%clk 0:03:01]}  d5 {[%clk 0:02:49]} 6. cxd5 {[%clk 0:03:00]}  cxd5 {[%clk 0:02:49]} 7. b4 {[%clk 0:03:01]}  Bd6 {[%clk 0:02:46]} 8. Bb2 {[%clk 0:03:01]}  O-O {[%clk 0:02:46]} 9. Be2 {[%clk 0:03:01]}  Re8 {[%clk 0:02:45]} 10. h3 {[%clk 0:03:01]}  Nbd7 {[%clk 0:02:44]} 11. Nbd2 {[%clk 0:03:01]}  Nf8 {[%clk 0:02:44]} 12. Rc1 {[%clk 0:03:00]}  Qe7 {[%clk 0:02:40]} 13. O-O {[%clk 0:03:00]}  Ng6 {[%clk 0:02:35]} 14. e4 {[%clk 0:02:57]}  h6 {[%clk 0:02:30]} 15. Re1 {[%clk 0:02:56]}  Be6 {[%clk 0:02:28]} 16. Bf1 {[%clk 0:02:57]}  a5 {[%clk 0:02:26]} 17. exd5 {[%clk 0:02:45]}  Bxd5 {[%clk 0:02:20]} 18. Nc4 {[%clk 0:02:42]}  axb4 {[%clk 0:02:14]} 19. Nfxe5 {[%clk 0:02:39]}  Bxc4 {[%clk 0:01:57]} 20. Nxg6 {[%clk 0:02:29]}  Qxe1 {[%clk 0:01:55]} 21. Qxe1 {[%clk 0:02:30]}  Rxe1 {[%clk 0:01:54]} 22. Rxe1 {[%clk 0:02:31]}  Be6 {[%clk 0:01:38]} 23. Bxf6 {[%clk 0:02:19]}  gxf6 {[%clk 0:01:34]} 24. axb4 {[%clk 0:02:19]}  Bxb4 {[%clk 0:01:33]} 25. Rb1 {[%clk 0:02:17]}  Bd6 {[%clk 0:01:30]} 26. Nh4 {[%clk 0:02:15]}  Rb8 {[%clk 0:01:28]} 27. d4 {[%clk 0:02:14]}  Bd7 {[%clk 0:01:23]} 28. Bb5 {[%clk 0:02:14]}  Be6 {[%clk 0:01:19]} 29. d5 {[%clk 0:02:14]}  Bxd5 {[%clk 0:01:06]} 30. Rd1 {[%clk 0:02:14]}  Rd8 {[%clk 0:01:05]} 31. Nf5 {[%clk 0:01:56]}  Bc5 {[%clk 0:00:30]} 32. Bc4 {[%clk 0:01:53]}  Bxc4 {[%clk 0:00:27]} 33. Rxd8+ {[%clk 0:01:53]}  Kh7 {[%clk 0:00:27]} 34. g4 {[%clk 0:01:47]}  b5 {[%clk 0:00:25]} 35. Kg2 {[%clk 0:01:37]}  Ba3 {[%clk 0:00:23]} 36. Ne3 {[%clk 0:01:32]}  Be6 {[%clk 0:00:22]} 37. Rb8 {[%clk 0:01:27]}  b4 {[%clk 0:00:22]} 38. Nc2 {[%clk 0:01:26]}  Bd5+ {[%clk 0:00:19]} 39. f3 {[%clk 0:01:27]}  f5 {[%clk 0:00:15]} 40. Nxb4 {[%clk 0:01:25]}  Bxb4 {[%clk 0:00:16]} 41. Rxb4 {[%clk 0:01:24]}  fxg4 {[%clk 0:00:16]} 42. hxg4 {[%clk 0:01:25]}  Kg6 {[%clk 0:00:15]} 43. Kg3 {[%clk 0:01:25]}  Be6 {[%clk 0:00:12]} 44. Rb5 {[%clk 0:01:25]}  f5 {[%clk 0:00:10]} 45. gxf5+ {[%clk 0:01:12]}  Bxf5 {[%clk 0:00:10]} 46. Kf4 {[%clk 0:01:11]}  Bd3 {[%clk 0:00:10]} 47. Rb6+ {[%clk 0:01:11]}  Kg7 {[%clk 0:00:10]} 48. Ke5 {[%clk 0:01:11]}  h5 {[%clk 0:00:10]} 49. Kf4 {[%clk 0:01:11]}  Bg6 {[%clk 0:00:08]} 50. Kg5 {[%clk 0:01:11]}  Be8 {[%clk 0:00:07]} 51. f4 {[%clk 0:01:11]}  Bf7 {[%clk 0:00:05]} 52. f5 {[%clk 0:01:10]}  Bc4 {[%clk 0:00:03]} 53. Kxh5 {[%clk 0:01:10]}  Kf7 {[%clk 0:00:03]} 54. Kg5 {[%clk 0:01:10]}  Bd5 {[%clk 0:00:03]} 55. Ra6 {[%clk 0:01:10]}  Bc4 {[%clk 0:00:04]} 56. Ra7+ {[%clk 0:01:11]}  Kf8 {[%clk 0:00:04]} 57. Kf6 {[%clk 0:01:11]}  Ke8 {[%clk 0:00:03]} 58. Ra8+ {[%clk 0:01:10]}  Kd7 {[%clk 0:00:04]} 59. Kg7 {[%clk 0:01:07]}  Bd5 {[%clk 0:00:04]} 60. Ra7+ {[%clk 0:01:07]} 1-0


[Site "https://www.chess.com"]

[Event "Titled Tuesday Blitz December 06 Late 2022"]
[White "Rama, Tejas"]
[Black "Al-Tarboush, Ward"]
[WhiteFideId "30907381"]
[BlackFideId "7601450"]
[WhiteElo "2089"]
[BlackElo "2263"]
[Result "1-0"]
[Round "02"]
[TimeControl "180+1"]
[Date "2022.12.07"]
[WhiteClock "0:00:14"]
[BlackClock "0:00:53"]

1. d4 {[%clk 0:03:00]}  Nf6 {[%clk 0:02:58]} 2. c4 {[%clk 0:03:01]}  g6 {[%clk 0:02:58]} 3. Nf3 {[%clk 0:03:01]}  Bg7 {[%clk 0:02:57]} 4. Nc3 {[%clk 0:03:01]}  d5 {[%clk 0:02:57]} 5. Qb3 {[%clk 0:03:01]}  dxc4 {[%clk 0:02:57]} 6. Qxc4 {[%clk 0:03:02]}  O-O {[%clk 0:02:57]} 7. e4 {[%clk 0:03:03]}  a6 {[%clk 0:02:57]} 8. Be2 {[%clk 0:03:01]}  b5 {[%clk 0:02:58]} 9. Qb3 {[%clk 0:03:01]}  Bb7 {[%clk 0:02:58]} 10. e5 {[%clk 0:02:56]}  Nd5 {[%clk 0:02:57]} 11. O-O {[%clk 0:02:56]}  Qd7 {[%clk 0:02:50]} 12. Bd2 {[%clk 0:02:41]}  Rd8 {[%clk 0:02:40]} 13. Rfd1 {[%clk 0:02:31]}  Nc6 {[%clk 0:02:40]} 14. Ne4 {[%clk 0:02:19]}  Qe8 {[%clk 0:02:18]} 15. a4 {[%clk 0:01:53]}  b4 {[%clk 0:02:15]} 16. Nc5 {[%clk 0:01:45]}  Bc8 {[%clk 0:02:15]} 17. a5 {[%clk 0:01:39]}  Bg4 {[%clk 0:01:57]} 18. Bc1 {[%clk 0:01:19]}  Nb8 {[%clk 0:01:32]} 19. h3 {[%clk 0:01:06]}  Bf5 {[%clk 0:01:30]} 20. g4 {[%clk 0:01:05]}  Be6 {[%clk 0:01:30]} 21. Nxe6 {[%clk 0:01:03]}  fxe6 {[%clk 0:01:31]} 22. Ng5 {[%clk 0:00:58]}  Qd7 {[%clk 0:01:31]} 23. Bc4 {[%clk 0:00:38]}  Nc6 {[%clk 0:01:30]} 24. Be3 {[%clk 0:00:35]}  h6 {[%clk 0:01:26]} 25. Ne4 {[%clk 0:00:33]}  Qe8 {[%clk 0:01:22]} 26. Nc5 {[%clk 0:00:31]}  Qf7 {[%clk 0:01:22]} 27. Qa4 {[%clk 0:00:28]}  Nxe3 {[%clk 0:01:11]} 28. Bxe6 {[%clk 0:00:22]}  Nxd1 {[%clk 0:01:06]} 29. Bxf7+ {[%clk 0:00:22]}  Kxf7 {[%clk 0:01:05]} 30. Qxc6 {[%clk 0:00:17]}  Nxb2 {[%clk 0:01:04]} 31. Qe6+ {[%clk 0:00:16]}  Kf8 {[%clk 0:01:04]} 32. Nd7+ {[%clk 0:00:16]}  Ke8 {[%clk 0:01:01]} 33. Nf6+ {[%clk 0:00:13]}  Bxf6 {[%clk 0:01:00]} 34. exf6 {[%clk 0:00:14]}  Rd7 {[%clk 0:00:53]} 35. Qg8# {[%clk 0:00:14]} 1-0


[Site "https://www.chess.com"]

[Event "Titled Tuesday Blitz December 06 Late 2022"]
[White "Rian, Kapriaga"]
[Black "Ronka, Erik"]
[WhiteFideId "7103263"]
[BlackFideId "505080"]
[WhiteElo "2273"]
[BlackElo "2264"]
[Result "0-1"]
[Round "02"]
[TimeControl "180+1"]
[Date "2022.12.07"]
[WhiteClock "0:00:07"]
[BlackClock "0:01:33"]

1. d4 {[%clk 0:03:00]}  Nf6 {[%clk 0:02:59]} 2. Nf3 {[%clk 0:03:00]}  g6 {[%clk 0:02:59]} 3. Bg5 {[%clk 0:03:00]}  Bg7 {[%clk 0:03:00]} 4. Nbd2 {[%clk 0:03:00]}  O-O {[%clk 0:03:00]} 5. c3 {[%clk 0:02:59]}  d6 {[%clk 0:03:00]} 6. e4 {[%clk 0:02:59]}  c5 {[%clk 0:03:00]} 7. dxc5 {[%clk 0:02:58]}  dxc5 {[%clk 0:03:01]} 8. Bc4 {[%clk 0:02:57]}  Nc6 {[%clk 0:03:01]} 9. O-O {[%clk 0:02:56]}  Qc7 {[%clk 0:03:01]} 10. Qe2 {[%clk 0:02:54]}  b6 {[%clk 0:03:01]} 11. h3 {[%clk 0:02:51]}  h6 {[%clk 0:02:59]} 12. Bh4 {[%clk 0:02:49]}  Nh5 {[%clk 0:02:57]} 13. a4 {[%clk 0:02:43]}  g5 {[%clk 0:02:52]} 14. Bg3 {[%clk 0:02:03]}  Nxg3 {[%clk 0:02:52]} 15. fxg3 {[%clk 0:02:03]}  Qxg3 {[%clk 0:02:52]} 16. Rf2 {[%clk 0:01:59]}  Bb7 {[%clk 0:02:45]} 17. Raf1 {[%clk 0:01:54]}  e6 {[%clk 0:02:42]} 18. Nh2 {[%clk 0:01:36]}  Rad8 {[%clk 0:02:31]} 19. Qh5 {[%clk 0:00:37]}  Ne5 {[%clk 0:01:51]} 20. Bb3 {[%clk 0:00:13]}  Ba6 {[%clk 0:01:50]} 21. Re1 {[%clk 0:00:10]}  Nd3 {[%clk 0:01:42]} 22. Ref1 {[%clk 0:00:09]}  Nxf2 {[%clk 0:01:42]} 23. Rxf2 {[%clk 0:00:08]}  Rxd2 {[%clk 0:01:38]} 24. Rxd2 {[%clk 0:00:07]}  Qe1+ {[%clk 0:01:37]} 25. Nf1 {[%clk 0:00:07]}  Qxf1+ {[%clk 0:01:32]} 26. Kh2 {[%clk 0:00:07]}  Qf4+ {[%clk 0:01:33]} 0-1


[Site "https://www.chess.com"]

[Event "Titled Tuesday Blitz December 06 Late 2022"]
[White "Rorrer, Grayson"]
[Black "Ward, Ieuan C"]
[WhiteFideId "30944996"]
[BlackFideId "406627"]
[WhiteElo "2200"]
[BlackElo "2320"]
[Result "1-0"]
[Round "02"]
[TimeControl "180+1"]
[Date "2022.12.07"]
[WhiteClock "0:00:40"]
[BlackClock "0:00:02"]

1. e4 {[%clk 0:03:00]}  c5 {[%clk 0:02:59]} 2. Nf3 {[%clk 0:02:59]}  d6 {[%clk 0:02:59]} 3. d4 {[%clk 0:02:54]}  cxd4 {[%clk 0:03:00]} 4. Nxd4 {[%clk 0:02:55]}  Nf6 {[%clk 0:03:00]} 5. Nc3 {[%clk 0:02:55]}  a6 {[%clk 0:03:00]} 6. Nb3 {[%clk 0:02:54]}  e5 {[%clk 0:02:58]} 7. Bg5 {[%clk 0:02:53]}  Be6 {[%clk 0:02:57]} 8. f4 {[%clk 0:02:53]}  Nc6 {[%clk 0:02:55]} 9. Qd2 {[%clk 0:02:51]}  Be7 {[%clk 0:02:54]} 10. O-O-O {[%clk 0:02:51]}  O-O {[%clk 0:02:53]} 11. Kb1 {[%clk 0:02:47]}  Rc8 {[%clk 0:02:41]} 12. f5 {[%clk 0:02:28]}  Bxb3 {[%clk 0:02:39]} 13. axb3 {[%clk 0:02:28]}  Nd4 {[%clk 0:02:19]} 14. Be3 {[%clk 0:02:20]}  Nc6 {[%clk 0:02:10]} 15. Be2 {[%clk 0:02:13]}  b5 {[%clk 0:02:07]} 16. Bf3 {[%clk 0:02:05]}  Qc7 {[%clk 0:02:02]} 17. g4 {[%clk 0:02:04]}  b4 {[%clk 0:01:59]} 18. Ne2 {[%clk 0:01:53]}  Rfd8 {[%clk 0:01:14]} 19. g5 {[%clk 0:01:53]}  Ne8 {[%clk 0:01:10]} 20. Rhg1 {[%clk 0:01:50]}  a5 {[%clk 0:00:50]} 21. g6 {[%clk 0:01:29]}  fxg6 {[%clk 0:00:44]} 22. fxg6 {[%clk 0:01:29]}  h6 {[%clk 0:00:43]} 23. Bg4 {[%clk 0:00:44]}  Ra8 {[%clk 0:00:33]} 24. Bxh6 {[%clk 0:00:40]}  gxh6 {[%clk 0:00:20]} 25. Qxh6 {[%clk 0:00:41]}  Ng7 {[%clk 0:00:02]} 26. Qh7+ {[%clk 0:00:39]}  Kf8 {[%clk 0:00:02]} 27. Qh8# {[%clk 0:00:40]} 1-0


[Site "https://www.chess.com"]

[Event "Titled Tuesday Blitz December 06 Late 2022"]
[White "Sukandar, Irine Kharisma"]
[Black "Romero Ruscalleda, Josep"]
[WhiteFideId "7101937"]
[BlackFideId "2231859"]
[WhiteElo "2301"]
[BlackElo "2183"]
[Result "1-0"]
[Round "02"]
[TimeControl "180+1"]
[Date "2022.12.07"]
[WhiteClock "0:01:36"]
[BlackClock "0:01:26"]

1. e4 {[%clk 0:02:58]}  g6 {[%clk 0:03:00]} 2. d4 {[%clk 0:02:55]}  Bg7 {[%clk 0:03:01]} 3. Nc3 {[%clk 0:02:56]}  d6 {[%clk 0:03:02]} 4. h3 {[%clk 0:02:56]}  Nc6 {[%clk 0:03:00]} 5. Nf3 {[%clk 0:02:57]}  Nf6 {[%clk 0:02:59]} 6. Be3 {[%clk 0:02:53]}  O-O {[%clk 0:02:59]} 7. Qd2 {[%clk 0:02:53]}  e5 {[%clk 0:02:59]} 8. d5 {[%clk 0:02:49]}  Ne7 {[%clk 0:02:59]} 9. Bh6 {[%clk 0:02:50]}  c6 {[%clk 0:02:54]} 10. dxc6 {[%clk 0:02:49]}  bxc6 {[%clk 0:02:54]} 11. Bxg7 {[%clk 0:02:49]}  Kxg7 {[%clk 0:02:54]} 12. O-O-O {[%clk 0:02:50]}  d5 {[%clk 0:02:39]} 13. exd5 {[%clk 0:02:43]}  e4 {[%clk 0:02:36]} 14. Ng5 {[%clk 0:02:32]}  cxd5 {[%clk 0:02:35]} 15. Ngxe4 {[%clk 0:02:31]}  Nxe4 {[%clk 0:02:27]} 16. Nxe4 {[%clk 0:02:30]}  Bf5 {[%clk 0:02:25]} 17. Qd4+ {[%clk 0:02:27]}  f6 {[%clk 0:02:22]} 18. Nc5 {[%clk 0:02:21]}  Rc8 {[%clk 0:02:13]} 19. g4 {[%clk 0:02:21]}  Bxc2 {[%clk 0:02:05]} 20. Ne6+ {[%clk 0:02:16]}  Kg8 {[%clk 0:02:04]} 21. Nxd8 {[%clk 0:02:16]}  Be4+ {[%clk 0:02:00]} 22. Kd2 {[%clk 0:01:55]}  Rfxd8 {[%clk 0:01:45]} 23. Bd3 {[%clk 0:01:54]}  Nc6 {[%clk 0:01:43]} 24. Qxf6 {[%clk 0:01:52]}  Bxd3 {[%clk 0:01:34]} 25. Kxd3 {[%clk 0:01:49]}  Nb4+ {[%clk 0:01:32]} 26. Ke2 {[%clk 0:01:49]}  Rc2+ {[%clk 0:01:29]} 27. Kf1 {[%clk 0:01:49]}  Rf8 {[%clk 0:01:29]} 28. Qe6+ {[%clk 0:01:45]}  Kg7 {[%clk 0:01:29]} 29. Rh2 {[%clk 0:01:37]}  Rxb2 {[%clk 0:01:26]} 30. Qe5+ {[%clk 0:01:36]} 1-0


[Site "https://www.chess.com"]